fUST/lending_fUST_20240722
["ID","MTS","AMOUNT","RATE_DAILY","PERIOD"]
[332877983,1721614245962,-500.0,0.00013972,2]
[332877984,1721614245971,-500.0,0.00013972,2]
[332877985,1721614245980,-500.0,0.00013972,2]
[332877986,1721614245990,-500.0,0.00013972,2]
[332877987,1721614245999,-500.0,0.00013972,2]
[332877988,1721614246008,-500.0,0.00013972,2]
[332877989,1721614246019,-500.0,0.00013972,2]
[332877991,1721614246028,-500.0,0.00013972,2]
[332877993,1721614246038,-504.28971247,0.00013972,2]
[332877994,1721614246047,-514.78887303,0.00013972,2]
[332877996,1721614246056,-565.75444883,0.00013972,2]
[332877998,1721614246066,-500.0,0.00013972,2]
[332878000,1721614246075,-500.0,0.00013972,2]
[332878002,1721614246085,-500.0,0.00013972,2]
[332878003,1721614246094,-381.50361508,0.00013972,2]
[332878004,1721614246103,-500.0,0.00013972,2]
[332878005,1721614246112,-174.71571469,0.00013972,2]
[332878006,1721614246121,-500.0,0.00013972,2]
[332878007,1721614246130,-563.65752757,0.00013972,2]
[332878008,1721614246139,-500.0,0.00013972,2]
[332878009,1721614246148,-500.0,0.00013972,2]
[332878010,1721614246157,-500.0,0.00013972,2]
[332878011,1721614246166,-504.77380926,0.00013972,2]
[332878012,1721614246178,-504.65469246,0.00013972,2]
[332878013,1721614246187,-550.84903723,0.00013972,2]
[332878014,1721614246197,-355.63183445,0.00013972,2]
[332878015,1721614246206,-500.0,0.00013972,2]
[332878016,1721614246214,-500.0,0.00013972,2]
[332878017,1721614246223,-500.0,0.00013972,2]
[332878018,1721614246232,-500.0,0.00013972,2]
[332878019,1721614246241,-500.0,0.00013972,2]
[332878020,1721614246250,-374.55485305,0.00013972,2]
[332878021,1721614246262,-502.67975774,0.00013972,2]
[332878022,1721614246271,-505.20031824,0.00013972,2]
[332878024,1721614246280,-500.0,0.00013972,2]
[332878026,1721614246289,-500.0,0.00013972,2]
[332878028,1721614246299,-531.50558207,0.00013972,2]
[332878029,1721614246308,-500.0,0.00013972,2]
[332878030,1721614246317,-500.0,0.00013972,2]
[332878031,1721614246326,-500.0,0.00013972,2]
[332878032,1721614246335,-500.0,0.00013972,2]
[332878033,1721614246344,-150.112233,0.00014,5]
[332878034,1721614246353,-150.112233,0.00014,5]
[332878035,1721614246363,-150.112233,0.000142,5]
[332878036,1721614246372,-150.112233,0.000142,2]
[332878037,1721614246381,-724.15,0.00014245,2]
[332878038,1721614246390,-724.15,0.00014245,2]
[332878039,1721614246399,-724.15,0.00014245,2]
[332878040,1721614246408,-724.15,0.00014245,2]
[332878041,1721614246417,-724.32514018,0.00014245,2]
[332878042,1721614246428,-950.79,0.00014246,2]
[332878043,1721614246437,-500.0,0.00014246,2]
[332878044,1721614246446,-233.62941123,0.00014246,2]
[332878045,1721614246455,-503.90397605,0.00014246,2]
[332878046,1721614246464,-500.0,0.00014246,2]
[332878047,1721614246473,-500.0,0.00014246,2]
[332878048,1721614246482,-500.0,0.00014246,2]
[332878049,1721614246491,-500.0,0.00014246,2]
[332878050,1721614246500,-500.0,0.00014246,2]
[332878051,1721614246511,-508.24205498,0.00014246,2]
[332878052,1721614246520,-295.39690888,0.00014246,2]
[332878053,1721614246529,-241.89933819,0.00014246,2]
[332878054,1721614246538,-500.0,0.00014246,2]
[332878055,1721614246547,-500.0,0.00014246,2]
[332878056,1721614246556,-500.0,0.00014246,2]
[332878057,1721614246566,-393.37612131,0.00014246,2]
[332878058,1721614246576,-219.60468552,0.00014246,2]
[332878059,1721614246586,-500.0,0.00014246,2]
[332878060,1721614246595,-500.0,0.00014246,2]
[332878061,1721614246604,-562.34093749,0.00014246,2]
[332878062,1721614246614,-263.5726678,0.00014246,2]
[332878063,1721614246628,-546.80856493,0.00014246,2]
[332878064,1721614246639,-500.0,0.00014246,2]
[332878065,1721614246649,-625.35316744,0.00014246,2]
[332878066,1721614246659,-500.0,0.00014246,2]
[332878067,1721614246670,-500.0,0.00014246,2]
[332878068,1721614246680,-1806.92,0.00014246,2]
[332878069,1721614246690,-500.0,0.00014246,2]
[332878070,1721614246701,-500.0,0.00014246,2]
[332878071,1721614246712,-500.0,0.00014246,2]
[332878072,1721614246721,-500.0,0.00014246,2]
[332878073,1721614246731,-570.59492107,0.00014246,2]
[332878074,1721614246741,-464.89198456,0.00014246,2]
[332878075,1721614246751,-500.0,0.00014246,2]
[332878076,1721614246762,-500.0,0.00014246,2]
[332878077,1721614246772,-337.29257704,0.00014246,2]
[332878078,1721614246781,-500.0,0.00014246,2]
[332878079,1721614246791,-466.08530162,0.00014246,2]
[332878080,1721614246801,-416.24009137,0.00014246,2]
[332878081,1721614246810,-500.0,0.00014246,2]
[332878082,1721614246820,-500.0,0.00014246,2]
[332878083,1721614246830,-346.02749396,0.00014246,2]
[332878084,1721614246840,-500.0,0.00014246,2]
[332878085,1721614246851,-500.0,0.00014246,2]
[332878086,1721614246861,-1508.6,0.00014246,2]
[332878087,1721614246872,-500.0,0.00014246,2]
[332878088,1721614246882,-500.0,0.00014246,2]
[332878089,1721614246892,-510.54506903,0.00014246,2]
[332878090,1721614246903,-222.11228454,0.00014246,2]
[332878091,1721614246914,-500.0,0.00014246,2]
[332878092,1721614246924,-500.0,0.00014246,2]
[332878093,1721614246938,-500.0,0.00014246,2]
[332878094,1721614246948,-277.53068773,0.00014246,2]
[332878095,1721614246958,-412.51427903,0.00014246,2]
[332878096,1721614246969,-500.0,0.00014246,2]
[332878097,1721614246979,-500.0,0.00014246,2]
[332878098,1721614246988,-233.06266664,0.00014246,2]
[332878099,1721614246998,-500.0,0.00014246,2]
[332878100,1721614247008,-500.0,0.00014246,2]
[332878101,1721614247020,-506.88,0.00014246,2]
[332878102,1721614247031,-532.22858355,0.00014246,2]
[332878103,1721614247041,-500.0,0.00014246,2]
[332878104,1721614247050,-500.0,0.00014246,2]
[332878105,1721614247061,-173.97058623,0.00014246,2]
[332878106,1721614247072,-500.0,0.00014246,2]
[332878107,1721614247081,-500.0,0.00014246,2]
[332878108,1721614247092,-500.0,0.00014246,2]
[332878109,1721614247102,-500.0,0.00014246,2]
[332878110,1721614247113,-282.76921526,0.00014246,2]
[332878111,1721614247124,-500.0,0.00014246,2]
[332878112,1721614247134,-500.0,0.00014246,2]
[332878113,1721614247145,-426.9875411,0.00014246,2]
[332878114,1721614247154,-328.50859414,0.00014246,2]
[332878115,1721614247164,-359.23854991,0.00014246,2]
[332878116,1721614247175,-548.85729338,0.00014246,2]
[332878117,1721614247184,-500.0,0.00014246,2]
[332878118,1721614247194,-500.0,0.00014246,2]
[332878119,1721614247204,-153.01673858,0.00014246,2]
[332878120,1721614247214,-500.0,0.00014246,2]
[332878121,1721614247224,-500.0,0.00014246,2]
[332878122,1721614247234,-500.0,0.00014246,2]
[332878123,1721614247244,-500.0,0.00014246,2]
[332878124,1721614247255,-153.48197831,0.00014246,2]
[332878125,1721614247271,-500.0,0.00014246,2]
[332878126,1721614247282,-500.0,0.00014246,2]
[332878127,1721614247291,-504.60706812,0.00014246,2]
[332878128,1721614247302,-500.0,0.00014246,2]
[332878129,1721614247311,-500.0,0.00014246,2]
[332878130,1721614247321,-503.40893604,0.00014246,2]
[332878131,1721614247332,-387.08290274,0.00014246,2]
[332878132,1721614247342,-426.13187059,0.00014246,2]
[332878133,1721614247353,-500.0,0.00014246,2]
[332878134,1721614247363,-500.0,0.00014246,2]
[332878135,1721614247373,-355.08674039,0.00014246,2]
[332878136,1721614247383,-500.0,0.00014246,2]
[332878137,1721614247393,-500.0,0.00014246,2]
[332878138,1721614247403,-527.0046201,0.00014246,2]
[332878139,1721614247413,-505.03987789,0.00014246,2]
[332878140,1721614247422,-500.0,0.00014246,2]
[332878141,1721614247432,-640.12938596,0.00014246,2]
[332878142,1721614247443,-500.0,0.00014246,2]
[332878143,1721614247454,-500.0,0.00014246,2]
[332878144,1721614247464,-500.0,0.00014246,2]
[332878145,1721614247475,-504.23846723,0.00014246,2]
[332878146,1721614247485,-516.05163371,0.00014246,2]
[332878147,1721614247495,-545.96339969,0.00014246,2]
[332878148,1721614247505,-500.0,0.00014246,2]
[332878149,1721614247522,-500.0,0.00014246,2]
[332878150,1721614247532,-500.0,0.00014246,2]
[332878151,1721614247541,-486.94280647,0.00014246,2]
[332878152,1721614247551,-500.0,0.00014246,2]
[332878153,1721614247561,-513.71621336,0.00014246,2]
[332878154,1721614247571,-434.70757458,0.00014246,2]
[332878155,1721614247581,-188.31880094,0.00014246,2]
[332878156,1721614247591,-500.0,0.00014246,2]
[332878157,1721614247602,-500.0,0.00014246,2]
[332878158,1721614247611,-500.0,0.00014246,2]
[332878159,1721614247623,-506.18152039,0.00014246,2]
[332878160,1721614247637,-538.3886222,0.00014246,2]
[332878161,1721614247647,-500.0,0.00014246,2]
[332878162,1721614247657,-419.64907718,0.00014246,2]
[332878163,1721614247668,-500.0,0.00014246,2]
[332878164,1721614247678,-162.5,0.00014247,2]
[332878165,1721614247689,-676.875,0.00014247,2]
[332878166,1721614247699,-150.112233,0.000143,4]
[332878167,1721614247711,-150.112233,0.000143,2]
[332878168,1721614247721,-151.285,0.00014442,2]
[332878169,1721614247731,-505.0,0.00014442,2]
[332878170,1721614247742,-1409.0,0.00014442,2]
[332878171,1721614247753,-150.112233,0.000145,3]
[332878172,1721614247768,-150.112233,0.000145,2]
[332878173,1721614247778,-950.79,0.0001452,2]
[332878174,1721614247790,-633.90564671,0.0001452,2]
[332878175,1721614247800,-500.0,0.0001452,2]
[332878176,1721614247811,-500.0,0.0001452,2]
[332878177,1721614247824,-500.0,0.0001452,2]
[332878178,1721614247835,-509.80431893,0.0001452,2]
[332878179,1721614247845,-500.0,0.0001452,2]
[332878180,1721614247856,-303.15731928,0.0001452,2]
[332878181,1721614247867,-286.42240119,0.0001452,2]
[332878182,1721614247878,-500.0,0.0001452,2]
[332878183,1721614247889,-500.0,0.0001452,2]
[332878184,1721614247899,-500.0,0.0001452,2]
[332878185,1721614247910,-500.0,0.0001452,2]
[332878186,1721614247921,-1806.92,0.0001452,2]
[332878187,1721614247932,-500.0,0.0001452,2]
[332878188,1721614247942,-500.0,0.0001452,2]
[332878189,1721614247952,-500.0,0.0001452,2]
[332878190,1721614247962,-435.54903973,0.0001452,2]
[332878191,1721614247972,-500.0,0.0001452,2]
[332878192,1721614247982,-554.30665554,0.0001452,2]
[332878193,1721614247993,-500.0,0.0001452,2]
[332878194,1721614248003,-602.90587554,0.0001452,2]
[332878195,1721614248017,-500.0,0.0001452,2]
[332878196,1721614248027,-325.92900579,0.0001452,2]
[332878197,1721614248037,-357.0206219,0.0001452,2]
[332878198,1721614248047,-1508.6,0.0001452,2]
[332878199,1721614248057,-500.0,0.0001452,2]
[332878200,1721614248068,-500.0,0.0001452,2]
[332878201,1721614248078,-500.0,0.0001452,2]
[332878202,1721614248088,-202.24956217,0.0001452,2]
[332878203,1721614248098,-500.0,0.0001452,2]
[332878204,1721614248108,-500.0,0.0001452,2]
[332878205,1721614248118,-338.19355343,0.0001452,2]
[332878206,1721614248128,-500.0,0.0001452,2]
[332878207,1721614248138,-500.0,0.0001452,2]
[332878208,1721614248147,-506.88,0.0001452,2]
[332878209,1721614248158,-500.0,0.0001452,2]
[332878210,1721614248168,-500.0,0.0001452,2]
[332878211,1721614248178,-500.0,0.0001452,2]
[332878212,1721614248188,-500.0,0.0001452,2]
[332878213,1721614248199,-500.0,0.0001452,2]
[332878214,1721614248209,-500.0,0.0001452,2]
[332878215,1721614248219,-500.0,0.0001452,2]
[332878216,1721614248230,-500.0,0.0001452,2]
[332878217,1721614248240,-371.71316994,0.0001452,2]
[332878218,1721614248250,-500.0,0.0001452,2]
[332878219,1721614248263,-500.0,0.0001452,2]
[332878220,1721614248276,-500.0,0.0001452,2]
[332878221,1721614248286,-500.0,0.0001452,2]
[332878222,1721614248298,-625.08614798,0.0001452,2]
[332878223,1721614248308,-500.0,0.0001452,2]
[332878224,1721614248318,-500.0,0.0001452,2]
[332878225,1721614248328,-500.0,0.0001452,2]
[332878226,1721614248338,-500.0,0.0001452,2]
[332878227,1721614248348,-162.65005554,0.0001452,2]
[332878228,1721614248359,-500.0,0.0001452,2]
[332878229,1721614248369,-640.09039261,0.0001452,2]
[332878230,1721614248380,-353.08218069,0.0001452,2]
[332878231,1721614248390,-500.0,0.0001452,2]
[332878232,1721614248400,-500.0,0.0001452,2]
[332878233,1721614248410,-500.0,0.0001452,2]
[332878234,1721614248420,-500.0,0.0001452,2]
[332878235,1721614248432,-212.82394202,0.0001452,2]
[332878236,1721614248442,-500.0,0.0001452,2]
[332878237,1721614248452,-431.38518101,0.0001452,2]
[332878238,1721614248462,-500.0,0.0001452,2]
[332878239,1721614248473,-500.0,0.0001452,2]
[332878240,1721614248483,-506.77493479,0.0001452,2]
[332878241,1721614248493,-247.30750772,0.0001452,2]
[332878242,1721614248503,-933.45562603,0.0001452,2]
[332878243,1721614248517,-150.112233,0.000146,5]
[332878244,1721614248527,-200.0,0.0001462,2]
[332878245,1721614248537,-150.112233,0.000147,5]
[332878246,1721614248547,-950.79,0.00014794,2]
[332878247,1721614248558,-159.23,0.00014794,2]
[332878248,1721614248568,-500.0,0.00014794,2]
[332878249,1721614248579,-500.0,0.00014794,2]
[332878250,1721614248589,-500.0,0.00014794,2]
[332878251,1721614248599,-500.0,0.00014794,2]
[332878252,1721614248609,-500.0,0.00014794,2]
[332878253,1721614248619,-517.00731958,0.00014794,2]
[332878254,1721614248632,-1806.92,0.00014794,2]
[332878255,1721614248642,-500.0,0.00014794,2]
[332878256,1721614248652,-166.52341053,0.00014794,2]
[332878257,1721614248663,-500.0,0.00014794,2]
[332878258,1721614248673,-500.0,0.00014794,2]
[332878259,1721614248683,-500.0,0.00014794,2]
[332878260,1721614248694,-1508.6,0.00014794,2]
[332878261,1721614248705,-500.0,0.00014794,2]
[332878262,1721614248715,-500.0,0.00014794,2]
[332878263,1721614248726,-500.0,0.00014794,2]
[332878264,1721614248738,-500.0,0.00014794,2]
[332878265,1721614248749,-500.0,0.00014794,2]
[332878266,1721614248759,-500.0,0.00014794,2]
[332878267,1721614248772,-352.61706925,0.00014794,2]
[332878268,1721614248783,-506.88,0.00014794,2]
[332878269,1721614248794,-500.0,0.00014794,2]
[332878270,1721614248806,-500.0,0.00014794,2]
[332878271,1721614248817,-500.0,0.00014794,2]
[332878272,1721614248827,-500.0,0.00014794,2]
[332878273,1721614248840,-526.44028776,0.00014794,2]
[332878274,1721614248851,-500.0,0.00014794,2]
[332878275,1721614248862,-500.0,0.00014794,2]
[332878276,1721614248872,-500.0,0.00014794,2]
[332878277,1721614248883,-500.0,0.00014794,2]
[332878278,1721614248893,-485.60133313,0.00014794,2]
[332878279,1721614248903,-500.0,0.00014794,2]
[332878280,1721614248913,-500.0,0.00014794,2]
[332878281,1721614248922,-512.2458314,0.00014794,2]
[332878282,1721614248933,-629.57450782,0.00014794,2]
[332878283,1721614248944,-500.0,0.00014794,2]
[332878284,1721614248957,-563.72267921,0.00014794,2]
[332878285,1721614248967,-492.95986557,0.00014794,2]
[332878286,1721614248978,-500.0,0.00014794,2]
[332878287,1721614248988,-500.0,0.00014794,2]
[332878288,1721614248999,-500.0,0.00014794,2]
[332878289,1721614249011,-592.8700023,0.00014794,2]
[332878290,1721614249023,-500.0,0.00014794,2]
[332878291,1721614249033,-500.0,0.00014794,2]
[332878292,1721614249044,-165.0,0.00014795,2]
[332878293,1721614249054,-150.112233,0.000149,4]
[332878294,1721614249065,-150.112233,0.00015,3]
[332878295,1721614249076,-950.79,0.00015068,2]
[332878296,1721614249086,-500.0,0.00015068,2]
[332878297,1721614249097,-500.0,0.00015068,2]
[332878298,1721614249109,-500.0,0.00015068,2]
[332878299,1721614249120,-500.0,0.00015068,2]
[332878300,1721614249291,-500.0,0.00015068,2]
[332878301,1721614249301,-1806.92,0.00015068,2]
[332878302,1721614249311,-500.0,0.00015068,2]
[332878303,1721614249322,-500.0,0.00015068,2]
[332878304,1721614249332,-500.0,0.00015068,2]
[332878305,1721614249343,-500.0,0.00015068,2]
[332878306,1721614249354,-1508.6,0.00015068,2]
[332878307,1721614249363,-500.0,0.00015068,2]
[332878308,1721614249373,-500.0,0.00015068,2]
[332878309,1721614249383,-371.00016222,0.00015068,2]
[332878310,1721614249393,-500.0,0.00015068,2]
[332878311,1721614249404,-500.0,0.00015068,2]
[332878312,1721614249414,-500.0,0.00015068,2]
[332878313,1721614249424,-506.88,0.00015068,2]
[332878314,1721614249434,-500.0,0.00015068,2]
[332878315,1721614249444,-393.1146956,0.00015068,2]
[332878316,1721614249455,-500.0,0.00015068,2]
[332878317,1721614249465,-325.0620593,0.00015068,2]
[332878318,1721614249475,-500.0,0.00015068,2]
[332878319,1721614249485,-500.0,0.00015068,2]
[332878320,1721614249495,-500.0,0.00015068,2]
[332878321,1721614249505,-290.3705009,0.00015068,2]
[332878322,1721614249518,-500.0,0.00015068,2]
[332878323,1721614249528,-500.0,0.00015068,2]
[332878324,1721614249538,-500.0,0.00015068,2]
[332878325,1721614249548,-500.0,0.00015068,2]
[332878326,1721614249558,-500.0,0.00015068,2]
[332878327,1721614249569,-500.0,0.00015068,2]
[332878328,1721614249580,-500.0,0.00015068,2]
[332878329,1721614249590,-465.08526089,0.00015068,2]
[332878330,1721614249600,-301.414828,0.0001511,2]
[332878331,1721614249610,-153.0,0.0001511,2]
[332878332,1721614249621,-153.0,0.0001511,2]
[332878333,1721614249634,-500.0,0.00015164,7]
[332878334,1721614249645,-500.0,0.00015164,7]
[332878335,1721614249657,-500.0,0.00015164,7]
[332878336,1721614249667,-500.0,0.00015164,7]
[332878337,1721614249678,-255.21,0.00015164,7]
[332878338,1721614249689,-150.112233,0.000152,5]
[332878339,1721614249700,-950.79,0.00015342,2]
[332878340,1721614249712,-500.0,0.00015342,2]
[332878341,1721614249723,-500.0,0.00015342,2]
[332878342,1721614249736,-508.46623507,0.00015342,2]
[332878343,1721614249747,-500.0,0.00015342,2]
[332878344,1721614249757,-500.0,0.00015342,2]
[332878345,1721614249770,-1806.92,0.00015342,2]
[332878346,1721614249780,-500.0,0.00015342,2]
[332878347,1721614249790,-500.0,0.00015342,2]
[332878348,1721614249800,-500.0,0.00015342,2]
[332878349,1721614249811,-500.0,0.00015342,2]
[332878350,1721614249821,-1508.6,0.00015342,2]
[332878351,1721614249831,-500.0,0.00015342,2]
[332878352,1721614249842,-500.0,0.00015342,2]
[332878353,1721614249852,-500.0,0.00015342,2]
[332878354,1721614249862,-500.0,0.00015342,2]
[332878355,1721614249873,-295.21873202,0.00015342,2]
[332878356,1721614249883,-506.88,0.00015342,2]
[332878357,1721614249894,-500.0,0.00015342,2]
[332878358,1721614249904,-585.93209491,0.00015342,2]
[332878359,1721614249915,-492.041417,0.00015342,2]
[332878360,1721614249926,-514.52401745,0.00015342,2]
[332878361,1721614249936,-500.0,0.00015342,2]
[332878362,1721614249946,-500.0,0.00015342,2]
[332878363,1721614249957,-500.0,0.00015342,2]
[332878364,1721614249968,-500.0,0.00015342,2]
[332878365,1721614249978,-500.0,0.00015342,2]
[332878366,1721614249988,-500.0,0.00015342,2]
[332878367,1721614249998,-349.30165848,0.00015342,2]
[332878368,1721614250008,-539.71910444,0.00015342,2]
[332878369,1721614250021,-167.0,0.0001537,2]
[332878370,1721614250032,-150.112233,0.000154,4]
[332878371,1721614250042,-933.45562603,0.00015443,2]
[332878372,1721614250052,-150.112233,0.000155,4]
[332878373,1721614250062,-1000.0,0.000155,2]
[332878374,1721614250071,-206.63502011,0.00015533,2]
[332878375,1721614250081,-153.681858,0.00015597,2]
[332878376,1721614250091,-154.274774,0.00015597,2]
[332878377,1721614250100,-151.0,0.00015597,2]
[332878378,1721614250110,-151.0,0.00015597,2]
[332878379,1721614250120,-2000.0,0.00015597,2]
[332878380,1721614250130,-2000.0,0.00015606,2]
[332878381,1721614250141,-950.79,0.00015616,2]
[332878382,1721614250150,-500.0,0.00015616,2]
[332878383,1721614250160,-500.0,0.00015616,2]
[332878384,1721614250170,-500.0,0.00015616,2]
[332878385,1721614250180,-500.0,0.00015616,2]
[332878386,1721614250190,-1806.92,0.00015616,2]
[332878387,1721614250200,-500.0,0.00015616,2]
[332878388,1721614250210,-500.0,0.00015616,2]
[332878389,1721614250219,-500.0,0.00015616,2]
[332878390,1721614250229,-500.0,0.00015616,2]
[332878391,1721614250239,-1508.6,0.00015616,2]
[332878392,1721614250248,-500.0,0.00015616,2]
[332878393,1721614250258,-500.0,0.00015616,2]
[332878394,1721614250269,-507.14398914,0.00015616,2]
[332878395,1721614250279,-236.73723315,0.00015616,2]
[332878396,1721614250289,-506.88,0.00015616,2]
[332878397,1721614250300,-500.0,0.00015616,2]
[332878398,1721614250309,-500.0,0.00015616,2]
[332878399,1721614250320,-552.37938176,0.00015616,2]
[332878400,1721614250330,-500.0,0.00015616,2]
[332878401,1721614250340,-344.6243852,0.00015616,2]
[332878402,1721614250349,-312.14198999,0.00015616,2]
[332878403,1721614250359,-500.0,0.00015616,2]
[332878404,1721614250369,-67176.6485784,0.00015708,2]
[332878405,1721614250379,-151.0,0.00015708,2]
[332878406,1721614250390,-205.701333,0.00015708,2]
[332878407,1721614250401,-33184.48522723,0.00015708,2]
[332878408,1721614250411,-151.358316,0.00015708,2]
[332878409,1721614250422,-151.0,0.00015708,2]
[332878410,1721614250432,-152.291355,0.00015708,2]
[332878411,1721614250442,-97477.09347771,0.00015708,2]
[332878412,1721614250452,-3478.32192161,0.00015708,2]
[332878413,1721614250877,-2106.53631299,0.00013688,2]
[332878414,1721614250888,-500.0,0.00013698,2]
[332878415,1721614250898,-500.0,0.00013698,2]
[332878416,1721614250908,-500.0,0.00013698,2]
[332878417,1721614250918,-350.82891212,0.00013698,2]
[332878418,1721614250928,-9147.95846146,0.00015708,2]
[332878419,1721614250938,-151.0,0.00015708,2]
[332878420,1721614250947,-3820.46903031,0.00015708,2]
[332878421,1721614250957,-151.0,0.00015708,2]
[332878422,1721614250967,-151.0,0.00015708,2]
[332878423,1721614250978,-151.0,0.00015708,2]
[332878424,1721614250988,-13431.75505121,0.00015708,2]
[332878425,1721614250998,-293.36305,0.00015708,2]
[332878426,1721614251008,-151.0,0.00015708,2]
[332878427,1721614251020,-20354.21654022,0.00015708,2]
[332878428,1721614251030,-151.0,0.00015708,2]
[332878429,1721614251039,-153.143764,0.00015708,2]
[332878430,1721614251050,-151.0,0.00015708,2]
[332878431,1721614251061,-151.0,0.00015708,2]
[332878432,1721614251071,-156.408337,0.00015708,2]
[332878433,1721614251081,-399.56434,0.00015708,2]
[332878434,1721614251091,-399.56434,0.00015708,2]
[332878435,1721614251101,-151.0,0.00015708,2]
[332878436,1721614251111,-1161.70660488,0.00015708,2]
[332878437,1721614251122,-151.0,0.00015708,2]
[332878438,1721614251131,-151.0,0.00015708,2]
[332878439,1721614251141,-151.0,0.00015708,2]
[332878440,1721614251151,-151.0,0.00015708,2]
[332878441,1721614251161,-151.0,0.00015708,2]
[332878442,1721614251170,-151.0,0.00015708,2]
[332878443,1721614251180,-227.125892,0.00015708,2]
[332878444,1721614251190,-10079.98965755,0.00015708,2]
[332878445,1721614251201,-2085.00362608,0.00015712,2]
[332878446,1721614251210,-2844.54225606,0.00015712,2]
[332878447,1721614251220,-2085.00362608,0.00015712,2]
[332878448,1721614251230,-2426.72780151,0.00015744,2]
[332878449,1721614251239,-533.33376978,0.00015746,2]
[332878450,1721614251249,-1107.79559828,0.00015751,2]
[332878451,1721614251258,-5304.84073988,0.00015756,2]
[332878452,1721614251274,-585.133898,0.000158,6]
[332878453,1721614251287,-151.0,0.00015812,2]
[332878454,1721614251300,-159.24022,0.00015812,2]
[332878455,1721614251315,-151.0,0.00015812,2]
[332878456,1721614251326,-367.39222983,0.00015827,2]
[332878457,1721614251336,-152.18122,0.00015851,2]
[332878458,1721614251348,-151.907634,0.00015851,2]
[332878459,1721614251360,-152.7937,0.00015851,2]
[332878460,1721614251373,-151.0,0.00015851,2]
[332878461,1721614251386,-151.0,0.00015851,2]
[332878462,1721614251398,-151.0,0.00015851,2]
[332878463,1721614251410,-399.56434,0.00015851,2]
[332878464,1721614251423,-399.56434,0.00015851,2]
[332878465,1721614251436,-627.14056492,0.00015851,2]
[332878466,1721614251449,-600.19386734,0.00015851,2]
[332878467,1721614251462,-166.789149,0.00015862,2]
[332878468,1721614251475,-151.0,0.00015862,2]
[332878469,1721614251487,-950.79,0.0001589,2]
[332878470,1721614251500,-500.0,0.0001589,2]
[332878471,1721614251513,-500.0,0.0001589,2]
[332878472,1721614251527,-332.67974683,0.0001589,2]
[332878473,1721614251539,-174.90217424,0.0001589,2]
[332878474,1721614251552,-1806.92,0.0001589,2]
[332878475,1721614251564,-500.0,0.0001589,2]
[332878476,1721614251574,-500.0,0.0001589,2]
[332878477,1721614251584,-500.0,0.0001589,2]
[332878478,1721614251595,-500.0,0.0001589,2]
[332878479,1721614251606,-1508.6,0.0001589,2]
[332878480,1721614251619,-500.0,0.0001589,2]
[332878481,1721614251636,-223.32973433,0.0001589,2]
[332878482,1721614251649,-506.88,0.0001589,2]
[332878483,1721614251663,-206.46378525,0.0001589,2]
[332878484,1721614251675,-500.0,0.0001589,2]
[332878485,1721614251690,-500.0,0.0001589,2]
[332878486,1721614251703,-500.0,0.0001589,2]
[332878487,1721614251717,-226.809203,0.0001589,2]
[332878488,1721614251730,-151.0,0.0001589,2]
[332878489,1721614251742,-151.0,0.0001589,2]
[332878490,1721614251754,-300.0,0.00015901,2]
[332878491,1721614251767,-951.10916369,0.00015952,2]